Cogmind - Beta 14 @@@ ROGUE MODE // 2024.11.09 @ 17:19:56 Player: puppuppit Result: Core destroyed Performance ------------- Evolutions (3) 1500 Regions Visited (7) 1400 Robots Destroyed (185) 925 Value Destroyed (3987) 3987 Prototype IDs (31) 620 Alien Tech Used (0) 0 Bonus (446) 446 TOTAL SCORE: 8878 Bonus ------- High Alert Combat Kills 897 Follower Combat Kills 155 Entered Garrisons 200 Aligned with FarCom 300 Friendly Fire -1106 Cogmind --------- Core Integrity 0/700 Matter 88/300 Energy 224/300 System Corruption 0% Temperature Critical (638) Movement Core (650) Ox12 Location -7/Factory Parts ------- > --- POWER (1) -------- (None) > --- PROPULSION (4) --- Advanced Treads Advanced Treads Advanced Treads > --- UTILITY (4) ------ Medium Storage Unit Large Battery Targeting Computer Targeting Computer > --- WEAPON (4) ------- Ion Cannon Flak Cannon Flak Cannon Flak Cannon > --- INVENTORY (10) --- Army-in-a-Box (30/30) Ion Cannon Flak Cannon Armageddon Trap Peak State ------------ > --- POWER ------------ (None) > --- PROPULSION ------- Aerolev Unit Aerolev Unit Aerolev Unit > --- UTILITY ---------- Medium Storage Unit Improved Heavy Armor Plating > --- WEAPON ----------- Phase Cannon Phase Cannon > --- INVENTORY -------- Aerolev Unit Aerolev Unit Army-in-a-Box [Rating: 39] Favorites ----------- Power Light Ion Engine Engine Light Ion Engine Power Core Light Nuclear Core Propulsion Wheel Treads Advanced Treads Wheel Wheel Hover Unit Aerolev Unit Utility Medium Storage Unit Device Kinecellerator Storage Medium Storage Unit Processor Targeting Computer Hackware Hacking Suite Protection Layered Medium Armor Plating Weapon Assault Rifle Energy Cannon Beam Cannon Ballistic Gun Assault Rifle Ballistic Cannon Flak Cannon Launcher Mini Grenade Launcher Impact Weapon Hammer Build | -11 -10 -10 -10 -9 -8 -8 -7 ------- Run | Yrd Mat Min Exi Min Mat Gar Fac Slots Evolved 6 | . . . . . 4 . 2 Power . | . . . . . . . . Propulsion 2 | . . . . . 1 . 1 Utility 2 | . . . . . 1 . 1 Weapon 2 | . . . . . 2 . . Parts Attached 154 | 8 13 8 5 7 52 45 16 Power 23 | 1 2 1 . 2 11 4 2 Engine 18 | 1 2 1 . 2 6 4 2 Core 5 | . . . . . 5 . . Reactor . | . . . . . . . . Propulsion 39 | 3 2 3 2 3 12 9 5 Treads 3 | . . . . . . . 3 Leg . | . . . . . . . . Wheel 20 | 3 2 3 2 3 6 . 1 Hover 16 | . . . . . 6 9 1 Flight . | . . . . . . . . Utility 25 | 2 4 . 1 . 4 12 2 Device 7 | 1 . . . . . 5 1 Storage 6 | 1 2 . 1 . . 1 1 Processor 5 | . 2 . . . 1 2 . Hackware 3 | . . . . . 3 . . Protection 4 | . . . . . . 4 . Artifact . | . . . . . . . . Weapon 67 | 2 5 4 2 2 25 20 7 Energy Gun . | . . . . . . . . Energy Cannon 12 | . 3 . . . . 7 2 Ballistic Gun 45 | 2 1 3 2 1 23 12 1 Ballistic Cannon 4 | . . . . . . . 4 Launcher 5 | . 1 1 . 1 2 . . Special Weapon . | . . . . . . . . Impact Weapon 1 | . . . . . . 1 . Slashing Weapon . | . . . . . . . . Piercing Weapon . | . . . . . . . . Special Melee Weapon . | . . . . . . . . Unidentified Prototypes 1 | . . . . . 1 . . Parts Lost 27 | . . . . . 2 13 12 Power 3 | . . . . . . 2 1 Propulsion 7 | . . . . . . 2 5 Utility 4 | . . . . . 1 2 1 Weapon 13 | . . . . . 1 7 5 Highest Loss Streak 9 | . . . . . 1 9 9 To Critical Strikes . | . . . . . . . . Average Slot Usage (%) 94 | . 99 100 100 100 96 82 81 Engine 10 | . 14 14 14 14 6 7 4 Wheel 16 | . 28 28 28 28 12 . 1 Hover 9 | . . . . . 13 24 10 Storage 10 | . 14 14 14 14 9 6 9 Processor 10 | . 12 14 14 14 3 13 15 Hackware 4 | . . . . . 14 1 . Energy Cannon 3 | . 14 12 . . . 2 5 Ballistic Gun 24 | . 13 15 28 26 34 22 13 Peak Build Rating 39 | 9 10 10 15 15 38 39 36 Average Rating 19 | 6 8 9 12 12 29 26 28 On Entrance 15 | . 9 8 10 15 12 38 28 Naked Turns . | . . . . . . . . Heaviest Build 45 | 14 20 20 19 19 27 41 45 Greatest Support 66 | 26 20 20 20 20 30 24 66 Greatest Overweight (x) 5 | . . . . . 3 5 3 Average Overweight (x) . | . . . . . . . . Largest Inventory Capacity 10 | 8 10 10 10 10 10 10 10 Average Capacity 9 | 7 9 10 10 10 10 8 10 Most Carried 10 | 5 10 10 10 10 10 10 10 Average Carried 9 | 2 9 9 9 9 9 8 9 Final Capacity 10 | 8 10 10 10 10 10 10 10 Final Carried 10 | 5 10 10 10 10 10 10 9 Class Distribution -------------------- 52% | Mutant 15% | Scavenger-Gunner 15% | Hacker-Skirmisher 11% | Scavenger-Skirmisher Dominant Class ---------------- Mutant | -10/Materials Mutant | -10/Mines Mutant | -10/Exiles Mutant | -9/Mines Hacker-Skirmisher | -8/Materials Scavenger-Gunner | -8/Garrison Scavenger-Gunner | -7/Factory Resources | -11 -10 -10 -10 -9 -8 -8 -7 ----------- Run | Yrd Mat Min Exi Min Mat Gar Fac Matter Collected 4466 | 352 430 190 50 538 1909 778 219 Remotely . | . . . . . . . . Salvage Created 5962 | 160 1091 176 . 775 2538 957 265 Parts 419 | 15 82 18 . 67 169 53 15 Haulers Intercepted 5 | . 2 . . . 3 . . Recyclers Shooed 4 | . 1 1 . . 2 . . Parts Field Recycled . | . . . . . . . . Retrieved Matter . | . . . . . . . . Parts Self-Destructed . | . . . . . . . . Prevented . | . . . . . . . . Kills | -11 -10 -10 -10 -9 -8 -8 -7 ------- Run | Yrd Mat Min Exi Min Mat Gar Fac Combat Hostiles Destroyed 98 | . 17 8 . 3 43 20 7 Guns 69 | . 10 3 . 2 37 15 2 Cannons 15 | . 4 3 . . . 5 3 AOE 14 | . 3 2 . 1 6 . 2 Classes Destroyed 17 | 3 7 1 . . 4 2 . Worker 32 | 2 8 1 . 11 10 . . Builder 11 | . 2 . . 4 4 . 1 Tunneler 13 | 2 . 2 . 9 . . . Hauler 5 | . 2 . . . 3 . . Recycler 15 | 1 4 . . 2 7 . 1 Mechanic 1 | . 1 . . . . . . Operator 4 | . 2 . . . 2 . . Watcher 8 | . 3 . . . 4 . 1 Swarmer 44 | . 12 3 . 2 16 6 5 Grunt 25 | . 5 2 . 1 14 3 . Brawler 5 | . . . . . 2 3 . Duelist 3 | . . . . . . 1 2 Protector 1 | . . . . . 1 . . Sentry 12 | . . . . . 9 3 . Hunter 4 | . . . . . 1 3 . Behemoth 1 | . . . . . . 1 . Assembled 3 | . . 3 . . . . . Best Kill Streak 8 | 3 7 3 . 4 8 4 3 Combat Bots Only 8 | . 4 3 . 2 8 4 3 Max Kills in Single Turn 3 | 1 3 2 . 1 3 1 2 Gunslinging 2 | . . . . . 2 . . Exploded 3 | . 3 2 . 1 2 . 1 Melee . | . . . . . . . . Uniques/NPCs Destroyed 1 | . . . . 1 . . . YI-UF0 (-9/Mines) Combat | -11 -10 -10 -10 -9 -8 -8 -7 -------- Run | Yrd Mat Min Exi Min Mat Gar Fac Hostile Shots Fired 529 | . 56 20 . 10 142 173 128 Missed 174 | . 22 9 . 2 52 60 29 Damage Taken 6327 | . 321 179 . 79 1249 2391 2108 Core 1424 | . 105 78 . . 160 309 772 Absorbed by Shields 2 | . . . . . . 2 . Regen/Repaired (Parts) 175 | . . . . . 175 . . Core Remaining (%) 46 | 100 . . . 26 . 14 . Volleys Fired 440 | 18 85 23 . 74 124 88 28 Largest 4 | 2 2 2 . 2 4 4 4 Hottest 208 | 40 120 120 . 50 100 175 208 Shots Fired 1134 | 36 169 46 . 142 447 191 103 Gun 950 | 36 98 18 . 136 439 159 64 Cannon 167 | . 70 26 . . . 32 39 Launcher 17 | . 1 2 . 6 8 . . Special . | . . . . . . . . Kinetic 979 | 36 98 18 . 136 439 159 93 Thermal 138 | . 70 26 . . . 32 10 Explosive 17 | . 1 2 . 6 8 . . Electromagnetic . | . . . . . . . . Robot Hit Streak 17 | 13 17 5 . 14 15 13 13 Robot Miss Streak 9 | 3 5 4 . 5 9 5 8 Penetration Max 1 | . . . . . . 1 . Secondary Targets 9 | . 3 . . . 6 . . Max Gunslinging Chain 2 | . 1 . . . 2 . . Shots Hit Robots 631 | 25 103 25 . 80 221 117 60 Core Hits 334 | 11 48 21 . 40 124 43 47 Critical Kills 3 | . . . . . 2 1 . Critical Parts Destroyed 5 | . . . . . 3 2 . Critical Strikes 8 | . . . . . 5 3 . Destroy 8 | . . . . . 5 3 . Melee Attacks 2 | . . . . . . 2 . Impact 2 | . . . . . . 2 . Slashing . | . . . . . . . . Piercing . | . . . . . . . . Sneak Attacks . | . . . . . . . . Combat Hostiles . | . . . . . . . . Follow-up Attacks . | . . . . . . . . Damage Inflicted 10685 | 242 1688 574 . 1198 3824 2112 1047 Guns 7453 | 242 778 113 . 975 3506 1413 426 Cannons 2373 | . 791 264 . . . 697 621 Explosions 855 | . 119 197 . 221 318 . . Melee . | . . . . . . . . Ramming 4 | . . . . 2 . 2 . Kinetic 7889 | 242 778 113 . 975 3506 1413 862 Thermal 1937 | . 791 264 . . . 697 185 Explosive 855 | . 119 197 . 221 318 . . Electromagnetic . | . . . . . . . . Impact . | . . . . . . . . Slashing . | . . . . . . . . Piercing . | . . . . . . . . Highest Corruption . | . . . . . . . . Average Corruption . | . . . . . . . . Corruption Purged . | . . . . . . . . Corruption Blocked . | . . . . . . . . Overload Shots . | . . . . . . . . Overflow Damage 38 | . 23 . . 1 10 . 4 Projectiles 27 | . 23 . . . . . 4 Explosions 11 | . . . . 1 10 . . Melee . | . . . . . . . . Knockbacks 24 | . . . . . . . 24 Impact . | . . . . . . . . Kinetic 18 | . . . . . . . 18 Secondary 6 | . . . . . . . 6 Self-Inflicted Damage 54 | . 14 . . 1 38 1 . Shots 2 | . 1 . . . 1 . . Rammed 2 | . . . . 1 . 1 . Targets Rammed 2 | . . . . 1 . 1 . Kicked . | . . . . . . . . Crushed . | . . . . . . . . Highest Temperature 677 | . 410 429 . 6 107 447 677 Average Temperature 79 | . 129 161 . 4 21 59 183 Received Heat Transfer 1369 | . 84 67 . 18 405 498 297 Effects 15 | . 1 3 . . . . 11 Shutdowns 1 | . . 1 . . . . . Energy Bleed 3 | . 1 . . . . . 2 Interference 3 | . . . . . . . 3 Matter Decay 2 | . . 1 . . . . 1 Short Circuit 1 | . . 1 . . . . . Damage (minor) 1 | . . . . . . . 1 Damage (major) 3 | . . . . . . . 3 Damage (core) 1 | . . . . . . . 1 Siege Activations . | . . . . . . . . Robots Corrupted . | . . . . . . . . Combat Hostiles . | . . . . . . . . Parts Fried . | . . . . . . . . Impact Corruptions . | . . . . . . . . Robots Melted . | . . . . . . . . Combat Hostiles . | . . . . . . . . Parts Melted 5 | . 2 2 . . 1 . . Heat Transferred 3195 | . 1628 555 . . . 790 222 Parts Sabotaged . | . . . . . . . . Parts Stolen . | . . . . . . . . Parts Stripped . | . . . . . . . . Power Chain Reactions . | . . . . . . . . Alert | -11 -10 -10 -10 -9 -8 -8 -7 ------- Run | Yrd Mat Min Exi Min Mat Gar Fac Peak Influence 1574 | 25 434 192 . 141 1047 1574 914 Initial 826 | . 16 59 . . 11 680 826 Average 486 | 10 230 73 . 45 565 1115 869 Maximum Alert Level 4 | . 2 . . . 3 4 3 Low Security (%) 40 | 100 37 100 . 100 12 . . Level 1 11 | . 61 . . . 13 . . Level 2 14 | . 1 . . . 49 . . Level 3 25 | . . . . . 24 56 100 Level 4 8 | . . . . . . 42 . Level 5 . | . . . . . . . . High Security . | . . . . . . . . Max Security . | . . . . . . . . Squads Dispatched 13 | . 3 1 . 1 7 . 1 Investigation 3 | . . . . . 3 . . Extermination . | . . . . . . . . Reinforcement 6 | . 3 . . 1 2 . . Assault 3 | . . 1 . . 1 . 1 Garrison 1 | . . . . . 1 . . Intercept . | . . . . . . . . Searches Triggered . | . . . . . . . . Construction Impeded 2 | . . . . 1 1 . . Haulers Reinforced . | . . . . . . . . Active Scanning Responses . | . . . . . . . . Cargo Convoy Interrupts . | . . . . . . . . Stealth | -11 -10 -10 -10 -9 -8 -8 -7 --------- Run | Yrd Mat Min Exi Min Mat Gar Fac Distress Signals 3 | . . . . . 2 . 1 Communications Jammed . | . . . . . . . . Distress Signals . | . . . . . . . . Times Spotted 157 | . 27 20 . 7 53 28 22 Peak Tracking Total 8 | . 4 5 . 3 8 5 8 Tactical Retreats 7 | . 1 . . . 3 3 . Traps | -11 -10 -10 -10 -9 -8 -8 -7 ------- Run | Yrd Mat Min Exi Min Mat Gar Fac Traps Triggered 14 | . . . . . . 14 . Indirectly . | . . . . . . . . Trap Hack Attempts . | . . . . . . . . Triggered . | . . . . . . . . Disarmed . | . . . . . . . . Reprogrammed 3 | . . . . . 3 . . Reused 4 | . . . . . . 1 3 Traps Extracted . | . . . . . . . . Installed 9 | . . . . 4 . 2 3 Triggered 4 | . . . . . . 1 3 Most Traps Carried 4 | . . . . 2 . 4 4 Machines | -11 -10 -10 -10 -9 -8 -8 -7 ---------- Run | Yrd Mat Min Exi Min Mat Gar Fac Machines Disabled 11 | . 2 . . . 2 5 2 Max in Single Turn 1 | . 1 . . . 1 1 1 Garrison Relay 4 | . . . . . . 4 . Machines Repaired . | . . . . . . . . Machines Dismantled . | . . . . . . . . Machines Sabotaged . | . . . . . . . . Overloaded Fab Kills . | . . . . . . . . Hacking | -11 -10 -10 -10 -9 -8 -8 -7 --------- Run | Yrd Mat Min Exi Min Mat Gar Fac Machines Accessed 31 | . 5 . 5 . 17 3 1 Terminals 20 | . 5 . . . 11 3 1 Fabricators . | . . . . . . . . Repair Stations 2 | . . . . . 2 . . Recycling Units 1 | . . . . . 1 . . Scanalyzers 2 | . . . . . 2 . . Garrison Access 1 | . . . . . 1 . . Total Hacks 155 | . 26 . 50 . 68 8 3 Successful 106 | . 15 . 50 . 40 1 . Failed 48 | . 11 . . . 27 7 3 Catastrophic 8 | . 1 . . . 6 1 . Database Lockouts 1 | . . . . . 1 . . Manual 41 | . 11 . 1 . 29 . . Terminals 82 | . 26 . . . 45 8 3 Fabricators . | . . . . . . . . Repair Stations 14 | . . . . . 14 . . Recycling Units 1 | . . . . . 1 . . Scanalyzers 7 | . . . . . 7 . . Garrison Access 1 | . . . . . 1 . . Terminal Hacks 84 | . 15 . 50 . 18 1 . Record 49 | . . . 49 . . . . Robot Analysis 11 | . 6 . . . 5 . . Prototype ID Bank 6 | . 4 . . . 2 . . Level Access Points 1 | . . . . . 1 . . Terminal Index 1 | . . . . . 1 . . Alert Level 2 | . 1 . . . 1 . . Unreport Threat 1 | . 1 . . . . . . Locate Traps 6 | . 2 . . . 4 . . Reprogram Traps 1 | . . . . . 1 . . Registered Prototypes 1 | . . . . . 1 . . Zone Layout 3 | . 1 . . . 2 . . Patrol Navigation 1 | . . . . . . 1 . Derelict Proto ID Bank 1 | . . . 1 . . . . Fabricator Hacks . | . . . . . . . . Repair Station Hacks 14 | . . . . . 14 . . Scan Component 7 | . . . . . 7 . . Repair 7 | . . . . . 7 . . Recycling Unit Hacks 1 | . . . . . 1 . . Retrieve Components 1 | . . . . . 1 . . Scanalyzer 6 | . . . . . 6 . . Insert Component 3 | . . . . . 3 . . Analyze 3 | . . . . . 3 . . Garrison Access Hacks 1 | . . . . . 1 . . Unlock Access 1 | . . . . . 1 . . Unauthorized Hacks . | . . . . . . . . Terminals . | . . . . . . . . Fabricators . | . . . . . . . . Repair Stations . | . . . . . . . . Recycling Units . | . . . . . . . . Scanalyzers . | . . . . . . . . Garrison Access . | . . . . . . . . Data Cores Recovered 1 | . . . . . 1 . . Used . | . . . . . . . . Hacking Detections 23 | . 5 . . . 14 3 1 Full Trace Events 7 | . 1 . . . 4 2 . Feedback Events 1 | . . . . . 1 . . Hackware Fried 1 | . . . . . 1 . . Feedback Blocked . | . . . . . . . . Robot Schematics Acquired . | . . . . . . . . Robots Built . | . . . . . . . . Authchips . | . . . . . . . . Time . | . . . . . . . . Total Robot Build Rating . | . . . . . . . . Part Schematics Acquired 3 | . . . . . 3 . . Parts Built . | . . . . . . . . Authchips . | . . . . . . . . Time . | . . . . . . . . Total Part Build Rating . | . . . . . . . . Parts Repaired 7 | . . . . . 7 . . Time 276 | . . . . . 276 . . Parts Recycled . | . . . . . . . . Recycled Matter . | . . . . . . . . Retrieved Matter . | . . . . . . . . Retrieved Components 7 | . . . . . 7 . . Parts Scanalyzed 3 | . . . . . 3 . . Part Schematics Acquired 3 | . . . . . 3 . . Parts Damaged . | . . . . . . . . Bothacking | -11 -10 -10 -10 -9 -8 -8 -7 ------------ Run | Yrd Mat Min Exi Min Mat Gar Fac Used RIF Installer . | . . . . . . . . Robots Hacked . | . . . . . . . . Non-combat . | . . . . . . . . Combat . | . . . . . . . . Robot Hacks Applied . | . . . . . . . . Relay Couplers Released 15 | . . . . . . 15 . Machine Destruction 15 | . . . . . . 15 . Fabnet Peak Effective % . | . . . . . . . . Robots Rewired . | . . . . . . . . Allies Hacked . | . . . . . . . . Hacks Repelled . | . . . . . . . . Allies | -11 -10 -10 -10 -9 -8 -8 -7 -------- Run | Yrd Mat Min Exi Min Mat Gar Fac Total Allies 3 | . . 3 . . . . . Largest Group 3 | . . 3 3 1 1 . . Highest-Rated Group 72 | . . 72 72 31 31 . . Highest-Rated Ally 31 | . . 31 31 31 31 . . Total Orders . | . . . . . . . . Ally Attacks 38 | . . 23 . 8 7 . . Total Damage 606 | . . 359 . 125 122 . . Kills 12 | . . 9 . 2 1 . . Allies Corrupted . | . . . . . . . . Allies Melted . | . . . . . . . . Intel | -11 -10 -10 -10 -9 -8 -8 -7 ------- Run | Yrd Mat Min Exi Min Mat Gar Fac Robot Analysis Total 11 | . 6 . . . 5 . . Derelict Logs Recovered 1 | . . . . 1 . . . Drone Launches . | . . . . . . . . Drone Recoveries . | . . . . . . . . Exploration | -11 -10 -10 -10 -9 -8 -8 -7 ------------- Run | Yrd Mat Min Exi Min Mat Gar Fac Turns Passed 7002 | 119 872 532 420 1423 1904 1286 446 Spaces Moved 6306 | 61 690 519 488 1464 1316 1333 435 Core 36 | 6 . . . . . . 30 Treads 90 | . . . . . . . 90 Legs . | . . . . . . . . Wheels 3905 | 55 690 519 488 1464 689 . . Hover 2275 | . . . . . 627 1333 315 Flight . | . . . . . . . . Fastest Speed 40 | 50 80 80 80 80 42 42 40 Average Speed 72 | 81 80 80 80 80 79 46 74 Slowest Speed 350 | 90 80 80 80 80 235 350 200 Overloaded Moves . | . . . . . . . . Propulsion Burnouts . | . . . . . . . . Robots Hopped . | . . . . . . . . Cave-ins Triggered . | . . . . . . . . Exploration Rate (%) 69 | 4 98 92 90 102 83 72 11 Regions Visited 7 Branch Regions 3 Pre-discovered Areas 2 | . . . 1 1 . . . Known Exits Taken 1 | . . . . . 1 . . Unknown Exits Taken 5 | 1 1 1 1 1 . . . Scrap Searched 3 | . . 1 . 2 . . . Spaces Dug 6 | . . . . . 6 . . Terrain Destroyed 134 | . 11 16 . 49 57 . 1 Melee . | . . . . . . . . Projectile 1 | . . . . . . . 1 AOE 133 | . 11 16 . 49 57 . . Terrain Rammed . | . . . . . . . . Walls Destroyed . | . . . . . . . . Machines Disabled . | . . . . . . . . Actions | -11 -10 -10 -10 -9 -8 -8 -7 --------- Run | Yrd Mat Min Exi Min Mat Gar Fac Total 7886 | 94 851 592 520 1580 1895 1858 496 Wait 616 | . 28 29 12 6 348 188 5 Move 6298 | 60 689 518 487 1463 1315 1331 435 Hop . | . . . . . . . . Pick Up 82 | 6 14 5 5 10 17 21 4 Fast Attach 62 | 7 4 . . 1 21 18 11 Attach 28 | . 1 2 . . 7 15 3 Detach 17 | . 4 . . . 1 11 1 Swap 64 | 1 8 6 5 6 24 12 2 Drop 124 | 2 18 9 11 15 38 27 4 Fire 440 | 18 85 23 . 74 124 88 28 Melee 2 | . . . . . . 2 . Ram 2 | . . . . 1 . 1 . Kick . | . . . . . . . . Crush . | . . . . . . . . Escape Stasis 142 | . . . . . . 142 . Rewire . | . . . . . . . . Trap 9 | . . . . 4 . 2 3 Miscellaneous . | . . . . . . . . Route ------- -11/Scrapyard -10/Materials (discovered 5 exits: [*Mat x3] / [*Min x2]) -10/Mines (discovered 3 exits: [*Mat x2] / *Exi) -10/Exiles -9/Mines (discovered 2 exits: *Mat x2) -8/Materials (discovered 4 exits: *Fac x3 / Gar) -8/Garrison (discovered 3 exits: *Fac x3) -7/Factory History --------- Turn | Location | Event 23 | -11/Scrapyard | Discovered new exit (range 16) 120 | -11/Scrapyard | Entered Materials 327 | -10/Materials | Build established: Mutant 343 | -10/Materials | Discovered new exit (range 14) 435 | -10/Materials | Discovered new exit (range 3) 551 | -10/Materials | Discovered new exit (range 10) 715 | -10/Materials | Discovered new exit (range 14) 913 | -10/Materials | Discovered new exit (range 9) 992 | -10/Materials | Entered Mines 1038 | -10/Mines | Deemed a non-threat by the Exiles lab entrance 1038 | -10/Mines | Discovered new exit (range 5) 1163 | -10/Mines | Assembled infested the area 1168 | -10/Mines | Assisted by a Guerilla fighting off Assembled 1199 | -10/Mines | Core integrity fell below 50% 1232 | -10/Mines | Discovered new exit (range 15) 1319 | -10/Mines | Discovered new exit (range 16) 1322 | -10/Mines | Met a Derelict testing a Signal Generator 1332 | -10/Mines | Found Signal Generator 1524 | -10/Mines | Entered Exiles 1524 | -10/Exiles | Accompanied by 3 allies 1548 | -10/Exiles | Met 8R-AWN 1554 | -10/Exiles | Led the pair of lost Derelicts to a safe place 1568 | -10/Exiles | Met EX-HEX 1606 | -10/Exiles | Met EX-DEC 1623 | -10/Exiles | Visited The Gauntlet 1713 | -10/Exiles | Learned location of Zion (-7) 1730 | -10/Exiles | Met EX-BIN 1746 | -10/Exiles | Aligned with FarCom system 1747 | -10/Exiles | Given EX-Vault access code 1778 | -10/Exiles | Opened EX-Vault 1791 | -10/Exiles | Found Army-in-a-Box 1811 | -10/Exiles | Warned to stay clear of 0b10 Research branches 1898 | -10/Exiles | Discovered new exit (range 12) 1944 | -10/Exiles | Left Exiles lab with Army-in-a-Box 1944 | -10/Exiles | Entered Mines 1944 | -9/Mines | Accompanied by 1 ally 2221 | -9/Mines | Discovered new exit (range 5) 2292 | -9/Mines | Learned 4 Materials zone layouts 2498 | -9/Mines | Found a hidden stash of uninstalled traps 2619 | -9/Mines | Learned location of Storage (-7) 2622 | -9/Mines | Discovered new exit (range 15) 3116 | -9/Mines | YI-UF0 nonchalantly dropped a Grenade Launcher on the ground 3175 | -9/Mines | Murdered YI-UF0 3367 | -9/Mines | Entered Materials 3367 | -8/Materials | Accompanied by 1 ally 3367 | -8/Materials | Evolved 4 slots: Propulsion x1, Utility x1, Weapon x2 3837 | -8/Materials | Build established: Scavenger-Skirmisher 3937 | -8/Materials | Repaired Hvy. Assault Rifle 4024 | -8/Materials | Identified exit to Factory 4128 | -8/Materials | Central database locked down 4162 | -8/Materials | Hacking Suite fried by hacking feedback 4561 | -8/Materials | Build established: Hacker-Skirmisher 4572 | -8/Materials | Repaired Aerolev Unit 4612 | -8/Materials | Repaired Hpw. Shotgun 4673 | -8/Materials | Repaired Aerolev Unit 4707 | -8/Materials | Repaired Hvy. Assault Rifle 4746 | -8/Materials | Repaired Hpw. Shotgun 4780 | -8/Materials | Repaired Hvy. Assault Rifle 4967 | -8/Materials | First assault squad dispatched 5046 | -8/Materials | Destroyed 8 combat bots 5115 | -8/Materials | Garrison activated, responded to threat 5268 | -8/Materials | Identified exit to Garrison 5271 | -8/Materials | Entered Garrison 5338 | -8/Garrison | Spotted B-75 Beast 5378 | -8/Garrison | Core integrity fell below 50% 5444 | -8/Garrison | Lost 9 parts (1p1n2u5w) 5496 | -8/Garrison | Destroyed B-75 Beast 5551 | -8/Garrison | Garrison Relay disabled 5553 | -8/Garrison | Triggered checkpoint 5828 | -8/Garrison | Core integrity fell below 20% 5847 | -8/Garrison | Triggered checkpoint 5946 | -8/Garrison | Discovered exit to Factory (range 12) 5979 | -8/Garrison | Triggered checkpoint 6036 | -8/Garrison | Garrison Relay disabled 6110 | -8/Garrison | Build established: Scavenger-Gunner 6237 | -8/Garrison | Triggered checkpoint 6290 | -8/Garrison | Garrison Relay disabled 6301 | -8/Garrison | Discovered exit to Factory (range 15) 6341 | -8/Garrison | Triggered checkpoint 6397 | -8/Garrison | Discovered exit to Factory (range 10) 6418 | -8/Garrison | Triggered checkpoint 6557 | -8/Garrison | Entered Factory 6557 | -7/Factory | Evolved 2 slots: Propulsion x1, Utility x1 6757 | -7/Factory | Core integrity fell below 50% 6785 | -7/Factory | Lost 9 parts (4n1u4w) 6957 | -7/Factory | First assault squad dispatched 6988 | -7/Factory | Core integrity fell below 20% 7004 | -7/Factory | Core destroyed Last Messages --------------- 06989_ Overheating: Targeting Computer damaged (-5). 06989_ Overheating: Wheel damaged (-24). 06990_ Flak Cannon destroyed. 06990_ Critical hit (Burn: +37). 06992_ Overheating: Matter decay (-45). 06992_ S-27 Virus destroyed. 06996_ S-27 Virus knocked back. 06997_ Overheating: Targeting Computer damaged (-1). 06999_ G-47 Trooper knocked back. 07000_ Overheating: Energy bleed (-26). 07000_ U-05 Engineer lays Concrete. 07001_ Overheating: Energy bleed (-31). 07001_ Wheel destroyed. 07001_ K-01 Serf cleans the Terminal. 07003_ Overheating: System interference. 07003_ Targeting Computer temporarily disabled. 07003_ Flak Cannon temporarily disabled. 07003_ Targeting Computer temporarily disabled. 07003_ G-50 Soldier knocked back. 07004_ Overheating: Core damaged (-126). Map ----- +----------------------------------------------------+ | ##### """" """" #??### | | + """" """" #??# # | | ##### """" """" #??# """ | | #???# """" """" #??## ^^ | | #???#] """" """" #??### ######### """ | | #???# """" """" #??# # ## # = | | #???# """" """" #??## ## # [ ^ | | #???# #???## # # [ | | #???# #???# ## # | | #???# #???## # ## ## | | #??#################### ### ## | | #####?# # # ######+#### | | #?# # # # # | | "" #?# # # ## # | | "" #?# # " #### %+ | | "" #?# + "Tk #??# # " | | "" #?# # #??# # " | | "" #?# # #??# "" # " | | "" #?# # #??# """"" # | | "" #?# # #??# """"" # " | | #?################### ##??########### " | | #####??????############?# #?????????????# " | | ???????????# # #?????????????# | | ???????????# =# #?????????????# " | | ???????????# = *%g% #?????????????+ " | | ???????????# g#@ #?????????????# " | | ???????????# # #?????????????# | | ???????????# " " is?# #?????????????? " | | ???????????? "" ""% ?# ???????????? " | | ??????????????""" """ ??# ????????? " | | ???????????????"" """ ??# """ """ ???????? | | ????????????????? """???# """ """ ???????? | | ?????????????????? " ???# """ """?? ?????????### | | ???????????????????%g???# ? ???????????????? | | ??????????????????#+????? ??? ???????????????? | | ??????????????????#?????? ???????????????????? | | ?????????????????????????s ???????????????????? | | ?????????????????????????a ???????????????????? | | ?????????????????????????###+#???????????????????? | | ?????????????????????????????????????????????????? | | ?????????????????????????????????????????????????? | | ?????????????????????????????????????????????????? | | ?????????????????????????????????????????????????? | | ?????????????????????????????????????????????????? | | ?????????????????????????????????????????????????? | | ?????????????????????????????????????????????????? | | ?????????????????????????????????????????????????? | | ?????????????????????????????????????????????????? | | ?????????????????????????????????????????????????? | | ?????????????????????????????????????????????????? | +----------------------------------------------------+ Best States ------------- Heat Dissipation 41 Energy Generation 14 Energy Capacity 480 Matter Stores 300 Matter Capacity 300 Sight Range 16 Terrain Scan Range 16 Terrain Scan Density 10 Armor Coverage 600 Weapon Cycling 30 Evasion (%) 57 Targeting Accuracy 13 Recoil Reduction 4 Matter Filtering 30 Kinecelleration 30 Offensive Hacking 20 Defensive Hacking 10 Item Schematics ----------------- Hvy. Assault Rifle | -8/Materials | Scanalyzed System Shield | -8/Materials | Scanalyzed Cooling System | -8/Materials | Scanalyzed Robot Schematics ------------------ None Fabricated ------------ Nothing Alien Tech Used ----------------- None Achievements -------------- None Challenges ------------ None Game ------ Seed BraceMediumEngine Manual? 0 Play Time 01:34:17 Cumulative 504.5 hours Start 2024.11.09 @ 14:51:42 End 2024.11.09 @ 17:19:56 Sessions 1 Manual Loads 0 Difficulty Rogue Special Mode None Game No. 205 Rogue 205 Adventurer 0 Explorer 0 Win Type - Total 4 Types 0/0/2/2/0/0/0/0/0 Lore% 48 Gallery% 76 Achievement% 66 Wizard Run 0 Options --------- Layout 0 ASCII 0 Keyboard 1 Movement Arrows Keybinds 0 Fullscreen 1 Font 12/Proggy Map View 83x54 Zoom Use 0% Tactical HUD 1 Map Filters NONE Filters NONE Steam 0 RUN: 04f1e42d-2248-4310-9fdb-2e40ea48b9e6